[Event "Titled Tuesday Blitz December 13 Late 2022"]
[White "Goncalves, Davi Sulzbacher"]
[Black "Marchesich, Giovanni"]
[WhiteFideId "2154510"]
[BlackFideId "2824790"]
[WhiteElo "2182"]
[BlackElo "2200"]
[Result "1-0"]
[Round "02"]
[TimeControl "180+1"]
[Date "2022.12.14"]
[WhiteClock "0:01:28"]
[BlackClock "0:01:10"]

1. Nf3 {[%clk 0:03:00]}  Nf6 {[%clk 0:02:55]} 2. d4 {[%clk 0:03:00]}  d6 {[%clk 0:02:54]} 3. Bg5 {[%clk 0:03:00]}  Nbd7 {[%clk 0:02:53]} 4. e3 {[%clk 0:03:01]}  b6 {[%clk 0:02:53]} 5. Bd3 {[%clk 0:03:00]}  Bb7 {[%clk 0:02:54]} 6. O-O {[%clk 0:03:00]}  e5 {[%clk 0:02:53]} 7. Nbd2 {[%clk 0:02:59]}  Be7 {[%clk 0:02:54]} 8. e4 {[%clk 0:02:56]}  O-O {[%clk 0:02:52]} 9. c3 {[%clk 0:02:56]}  Re8 {[%clk 0:02:43]} 10. a4 {[%clk 0:02:43]}  h6 {[%clk 0:02:44]} 11. Bh4 {[%clk 0:02:36]}  a5 {[%clk 0:02:44]} 12. Qb3 {[%clk 0:02:35]}  g5 {[%clk 0:02:36]} 13. Bg3 {[%clk 0:02:33]}  Bf8 {[%clk 0:02:36]} 14. Rfe1 {[%clk 0:02:25]}  Nh5 {[%clk 0:02:33]} 15. Nc4 {[%clk 0:02:20]}  Bg7 {[%clk 0:02:30]} 16. Rad1 {[%clk 0:02:16]}  Qf6 {[%clk 0:02:00]} 17. Ne3 {[%clk 0:02:01]}  Nf4 {[%clk 0:01:57]} 18. dxe5 {[%clk 0:01:55]}  dxe5 {[%clk 0:01:44]} 19. Bc4 {[%clk 0:01:54]}  Nc5 {[%clk 0:01:44]} 20. Qa2 {[%clk 0:01:49]}  Bxe4 {[%clk 0:01:35]} 21. Ng4 {[%clk 0:01:36]}  Qg6 {[%clk 0:01:28]} 22. Nfxe5 {[%clk 0:01:30]}  Bxe5 {[%clk 0:01:25]} 23. Bxf7+ {[%clk 0:01:29]}  Kg7 {[%clk 0:01:10]} 24. Bxg6 {[%clk 0:01:28]} 1-0


[Site "https://www.chess.com"]

[Event "Titled Tuesday Blitz December 13 Late 2022"]
[White "Gorodetzky, David"]
[Black "Ballester Llagaria, Luis Eduardo"]
[WhiteFideId "2813416"]
[BlackFideId "2297620"]
[WhiteElo "2835"]
[BlackElo "2563"]
[Result "0-1"]
[Round "02"]
[TimeControl "180+1"]
[Date "2022.12.14"]
[WhiteClock "0:00:03"]
[BlackClock "0:00:49"]

1. f4 {[%clk 0:02:59]}  d5 {[%clk 0:02:58]} 2. Nf3 {[%clk 0:02:59]}  Nf6 {[%clk 0:02:57]} 3. g3 {[%clk 0:02:59]}  c6 {[%clk 0:02:56]} 4. Bg2 {[%clk 0:02:59]}  Qb6 {[%clk 0:02:56]} 5. e3 {[%clk 0:02:54]}  Bg4 {[%clk 0:02:51]} 6. h3 {[%clk 0:02:39]}  Bxf3 {[%clk 0:02:47]} 7. Qxf3 {[%clk 0:02:39]}  Nbd7 {[%clk 0:02:48]} 8. d3 {[%clk 0:02:33]}  e5 {[%clk 0:02:42]} 9. Nc3 {[%clk 0:02:31]}  Bd6 {[%clk 0:02:35]} 10. fxe5 {[%clk 0:02:26]}  Nxe5 {[%clk 0:02:33]} 11. Qf2 {[%clk 0:02:26]}  h5 {[%clk 0:01:54]} 12. Bd2 {[%clk 0:02:24]}  h4 {[%clk 0:01:54]} 13. g4 {[%clk 0:02:16]}  Nxd3+ {[%clk 0:01:53]} 14. cxd3 {[%clk 0:02:06]}  Bg3 {[%clk 0:01:53]} 15. Qxg3 {[%clk 0:02:06]}  hxg3 {[%clk 0:01:54]} 16. O-O-O {[%clk 0:02:06]}  O-O-O {[%clk 0:01:49]} 17. Ne2 {[%clk 0:02:02]}  Rhe8 {[%clk 0:01:47]} 18. Nd4 {[%clk 0:02:02]}  Nd7 {[%clk 0:01:43]} 19. Rhf1 {[%clk 0:01:57]}  Ne5 {[%clk 0:01:42]} 20. Bc3 {[%clk 0:01:54]}  Qa6 {[%clk 0:01:41]} 21. Kc2 {[%clk 0:01:50]}  f6 {[%clk 0:01:35]} 22. Nb3 {[%clk 0:01:45]}  Ng6 {[%clk 0:01:32]} 23. Nc5 {[%clk 0:01:03]}  Qb6 {[%clk 0:01:28]} 24. Bd4 {[%clk 0:01:02]}  Qc7 {[%clk 0:01:22]} 25. g5 {[%clk 0:00:37]}  Nh4 {[%clk 0:01:10]} 26. Bf3 {[%clk 0:00:19]}  g2 {[%clk 0:01:07]} 27. Bg4+ {[%clk 0:00:19]}  Kb8 {[%clk 0:00:59]} 28. Rg1 {[%clk 0:00:20]}  f5 {[%clk 0:00:55]} 29. Bh5 {[%clk 0:00:19]}  g6 {[%clk 0:00:55]} 30. Be2 {[%clk 0:00:19]}  Qg3 {[%clk 0:00:49]} 31. Kd2 {[%clk 0:00:13]}  b6 {[%clk 0:00:49]} 32. Nb3 {[%clk 0:00:03]}  c5 {[%clk 0:00:49]} 0-1


[Site "https://www.chess.com"]

[Event "Titled Tuesday Blitz December 13 Late 2022"]
[White "Gritsenko, Nikolai"]
[Black "Adury, Anant"]
[WhiteFideId "14112493"]
[BlackFideId "30964687"]
[WhiteElo "2389"]
[BlackElo "2167"]
[Result "1/2-1/2"]
[Round "02"]
[TimeControl "180+1"]
[Date "2022.12.14"]
[WhiteClock "0:01:10"]
[BlackClock "0:01:58"]

1. d4 {[%clk 0:03:00]}  d6 {[%clk 0:02:58]} 2. e4 {[%clk 0:02:58]}  Nf6 {[%clk 0:02:57]} 3. Nc3 {[%clk 0:02:59]}  e5 {[%clk 0:02:57]} 4. Nf3 {[%clk 0:02:58]}  Nc6 {[%clk 0:02:57]} 5. dxe5 {[%clk 0:02:56]}  Nxe5 {[%clk 0:02:57]} 6. Nxe5 {[%clk 0:02:56]}  dxe5 {[%clk 0:02:58]} 7. Qxd8+ {[%clk 0:02:55]}  Kxd8 {[%clk 0:02:59]} 8. Bc4 {[%clk 0:02:53]}  Bb4 {[%clk 0:02:59]} 9. Bd2 {[%clk 0:02:47]}  Ke7 {[%clk 0:02:57]} 10. O-O-O {[%clk 0:02:41]}  Be6 {[%clk 0:02:50]} 11. Bxe6 {[%clk 0:02:23]}  Kxe6 {[%clk 0:02:49]} 12. f3 {[%clk 0:02:20]}  Bxc3 {[%clk 0:02:50]} 13. Bxc3 {[%clk 0:02:20]}  Rhd8 {[%clk 0:02:49]} 14. Rxd8 {[%clk 0:02:19]}  Rxd8 {[%clk 0:02:49]} 15. Rd1 {[%clk 0:02:18]}  Rxd1+ {[%clk 0:02:49]} 16. Kxd1 {[%clk 0:02:18]}  c5 {[%clk 0:02:45]} 17. a4 {[%clk 0:02:14]}  b6 {[%clk 0:02:44]} 18. Ke2 {[%clk 0:02:11]}  a6 {[%clk 0:02:44]} 19. Kd3 {[%clk 0:01:52]}  Kd6 {[%clk 0:02:29]} 20. Bd2 {[%clk 0:01:47]}  Nd7 {[%clk 0:02:29]} 21. c4 {[%clk 0:01:34]}  a5 {[%clk 0:02:28]} 22. g3 {[%clk 0:01:28]}  Ke6 {[%clk 0:02:27]} 23. Bg5 {[%clk 0:01:18]}  f6 {[%clk 0:02:08]} 24. Be3 {[%clk 0:01:15]}  Nb8 {[%clk 0:02:08]} 25. f4 {[%clk 0:01:13]}  g6 {[%clk 0:01:58]} 26. fxe5 {[%clk 0:01:11]}  fxe5 {[%clk 0:01:58]} 27. Bg5 {[%clk 0:01:10]}  Nc6 {[%clk 0:01:58]} 1/2-1/2


[Site "https://www.chess.com"]

[Event "Titled Tuesday Blitz December 13 Late 2022"]
[White "Hamley, Ryan"]
[Black "Kozak, Adam"]
[WhiteFideId "30959497"]
[BlackFideId "753246"]
[WhiteElo "2606"]
[BlackElo "2460"]
[Result "0-1"]
[Round "02"]
[TimeControl "180+1"]
[Date "2022.12.13"]
[WhiteClock "0:00:20"]
[BlackClock "0:01:58"]

1. d4 {[%clk 0:03:00]}  Nf6 {[%clk 0:02:58]} 2. Nf3 {[%clk 0:03:01]}  g6 {[%clk 0:02:58]} 3. Nbd2 {[%clk 0:03:01]}  d5 {[%clk 0:02:58]} 4. b4 {[%clk 0:03:01]}  Bg7 {[%clk 0:02:55]} 5. e3 {[%clk 0:03:01]}  O-O {[%clk 0:02:55]} 6. c4 {[%clk 0:03:01]}  c6 {[%clk 0:02:52]} 7. Be2 {[%clk 0:03:01]}  Bf5 {[%clk 0:02:51]} 8. Bb2 {[%clk 0:03:00]}  Ne4 {[%clk 0:02:51]} 9. O-O {[%clk 0:02:59]}  Nxd2 {[%clk 0:02:51]} 10. Nxd2 {[%clk 0:02:53]}  Nd7 {[%clk 0:02:51]} 11. Bf3 {[%clk 0:02:50]}  Be6 {[%clk 0:02:50]} 12. cxd5 {[%clk 0:02:47]}  Bxd5 {[%clk 0:02:49]} 13. e4 {[%clk 0:02:47]}  Be6 {[%clk 0:02:48]} 14. Qc2 {[%clk 0:02:31]}  Nb6 {[%clk 0:02:48]} 15. Rfd1 {[%clk 0:02:27]}  Qd6 {[%clk 0:02:28]} 16. a3 {[%clk 0:02:19]}  Rfd8 {[%clk 0:02:27]} 17. Nf1 {[%clk 0:02:17]}  Bc4 {[%clk 0:02:20]} 18. Ne3 {[%clk 0:02:14]}  Ba6 {[%clk 0:02:11]} 19. Rd2 {[%clk 0:01:41]}  e5 {[%clk 0:02:09]} 20. d5 {[%clk 0:01:33]}  cxd5 {[%clk 0:02:09]} 21. Nxd5 {[%clk 0:01:32]}  Rac8 {[%clk 0:02:05]} 22. Qd1 {[%clk 0:01:15]}  Nc4 {[%clk 0:02:04]} 23. Rc2 {[%clk 0:01:06]}  b5 {[%clk 0:01:59]} 24. a4 {[%clk 0:01:01]}  Bb7 {[%clk 0:01:59]} 25. axb5 {[%clk 0:01:00]}  Bxd5 {[%clk 0:01:59]} 26. exd5 {[%clk 0:00:58]}  Nxb2 {[%clk 0:01:59]} 27. Rxb2 {[%clk 0:00:55]}  e4 {[%clk 0:01:59]} 28. Ra6 {[%clk 0:00:25]}  Qxd5 {[%clk 0:01:59]} 29. Qxd5 {[%clk 0:00:20]}  Rc1+ {[%clk 0:01:58]} 0-1


[Site "https://www.chess.com"]

[Event "Titled Tuesday Blitz December 13 Late 2022"]
[White "Harshavardhan G B"]
[Black "Przybylski, Wojciech"]
[WhiteFideId "25059009"]
[BlackFideId "1117599"]
[WhiteElo "2323"]
[BlackElo "2217"]
[Result "0-1"]
[Round "02"]
[TimeControl "180+1"]
[Date "2022.12.14"]
[WhiteClock "0:00:03"]
[BlackClock "0:00:29"]

1. d4 {[%clk 0:03:00]}  Nf6 {[%clk 0:02:59]} 2. c4 {[%clk 0:03:00]}  e6 {[%clk 0:02:59]} 3. Nf3 {[%clk 0:02:58]}  b6 {[%clk 0:02:59]} 4. g3 {[%clk 0:02:56]}  Bb7 {[%clk 0:02:58]} 5. Bg2 {[%clk 0:02:53]}  Be7 {[%clk 0:02:58]} 6. O-O {[%clk 0:02:53]}  O-O {[%clk 0:02:58]} 7. Re1 {[%clk 0:02:53]}  d5 {[%clk 0:02:57]} 8. Ne5 {[%clk 0:02:52]}  Nbd7 {[%clk 0:02:56]} 9. Nc3 {[%clk 0:02:51]}  c6 {[%clk 0:02:51]} 10. e4 {[%clk 0:02:45]}  Bb4 {[%clk 0:02:41]} 11. Bg5 {[%clk 0:02:34]}  Be7 {[%clk 0:02:38]} 12. Nxd7 {[%clk 0:02:00]}  Qxd7 {[%clk 0:02:28]} 13. cxd5 {[%clk 0:01:57]}  cxd5 {[%clk 0:02:23]} 14. e5 {[%clk 0:01:50]}  Ne8 {[%clk 0:02:22]} 15. Bxe7 {[%clk 0:01:48]}  Qxe7 {[%clk 0:02:22]} 16. f4 {[%clk 0:01:49]}  Nc7 {[%clk 0:02:15]} 17. Rc1 {[%clk 0:01:35]}  Rac8 {[%clk 0:02:13]} 18. Qh5 {[%clk 0:01:30]}  g6 {[%clk 0:02:07]} 19. Qh6 {[%clk 0:01:26]}  Ba6 {[%clk 0:02:01]} 20. g4 {[%clk 0:01:09]}  f5 {[%clk 0:01:41]} 21. g5 {[%clk 0:00:32]}  Qb4 {[%clk 0:01:35]} 22. Rcd1 {[%clk 0:00:24]}  Qxb2 {[%clk 0:01:34]} 23. Qh3 {[%clk 0:00:24]}  Nb5 {[%clk 0:01:27]} 24. Nxd5 {[%clk 0:00:23]}  exd5 {[%clk 0:01:16]} 25. Bxd5+ {[%clk 0:00:24]}  Kh8 {[%clk 0:01:16]} 26. Qe3 {[%clk 0:00:23]}  Rc3 {[%clk 0:01:02]} 27. Qf2 {[%clk 0:00:13]}  Rc2 {[%clk 0:00:48]} 28. Qe3 {[%clk 0:00:10]}  Nc3 {[%clk 0:00:40]} 29. e6 {[%clk 0:00:07]}  Nxd5 {[%clk 0:00:37]} 30. Qe5+ {[%clk 0:00:07]}  Nf6 {[%clk 0:00:30]} 31. Qxf6+ {[%clk 0:00:03]}  Rxf6 {[%clk 0:00:29]} 32. e7 {[%clk 0:00:03]}  Rg2+ {[%clk 0:00:29]} 0-1


[Site "https://www.chess.com"]

[Event "Titled Tuesday Blitz December 13 Late 2022"]
[White "Hoffmann, Asa"]
[Black "Nasuta, Grzegorz"]
[WhiteFideId "2001470"]
[BlackFideId "1141686"]
[WhiteElo "2117"]
[BlackElo "2441"]
[Result "0-1"]
[Round "02"]
[TimeControl "180+1"]
[Date "2022.12.14"]
[WhiteClock "0:00:05"]
[BlackClock "0:00:01"]

1. d4 {[%clk 0:02:59]}  d5 {[%clk 0:02:59]} 2. Bg5 {[%clk 0:02:52]}  f6 {[%clk 0:02:53]} 3. Bf4 {[%clk 0:02:52]}  Nc6 {[%clk 0:02:52]} 4. Nf3 {[%clk 0:02:51]}  Bg4 {[%clk 0:02:49]} 5. Nbd2 {[%clk 0:02:50]}  e6 {[%clk 0:02:48]} 6. Bg3 {[%clk 0:02:47]}  Bd6 {[%clk 0:02:48]} 7. e3 {[%clk 0:02:45]}  Nge7 {[%clk 0:02:47]} 8. c4 {[%clk 0:02:44]}  Bxg3 {[%clk 0:02:20]} 9. hxg3 {[%clk 0:02:44]}  Qd7 {[%clk 0:02:20]} 10. Qa4 {[%clk 0:02:35]}  O-O {[%clk 0:01:48]} 11. Be2 {[%clk 0:02:30]}  Rad8 {[%clk 0:01:41]} 12. cxd5 {[%clk 0:02:05]}  exd5 {[%clk 0:01:35]} 13. Rc1 {[%clk 0:01:59]}  Nc8 {[%clk 0:01:05]} 14. a3 {[%clk 0:01:42]}  Nb6 {[%clk 0:01:04]} 15. Qc2 {[%clk 0:01:42]}  Bf5 {[%clk 0:01:04]} 16. Bd3 {[%clk 0:01:42]}  Bxd3 {[%clk 0:01:02]} 17. Qxd3 {[%clk 0:01:42]}  g6 {[%clk 0:00:57]} 18. Nb3 {[%clk 0:01:15]}  Ne7 {[%clk 0:00:51]} 19. Nc5 {[%clk 0:01:14]}  Qc8 {[%clk 0:00:52]} 20. O-O {[%clk 0:01:09]}  c6 {[%clk 0:00:42]} 21. b4 {[%clk 0:01:05]}  Nc4 {[%clk 0:00:42]} 22. e4 {[%clk 0:01:00]}  b6 {[%clk 0:00:38]} 23. Nb3 {[%clk 0:00:57]}  Qd7 {[%clk 0:00:34]} 24. a4 {[%clk 0:00:52]}  Nd6 {[%clk 0:00:11]} 25. e5 {[%clk 0:00:50]}  Nc4 {[%clk 0:00:09]} 26. Rfe1 {[%clk 0:00:41]}  Nf5 {[%clk 0:00:08]} 27. g4 {[%clk 0:00:38]}  Ne7 {[%clk 0:00:07]} 28. Re2 {[%clk 0:00:22]}  Rde8 {[%clk 0:00:06]} 29. Rce1 {[%clk 0:00:21]}  Nc8 {[%clk 0:00:05]} 30. exf6 {[%clk 0:00:16]}  Rxe2 {[%clk 0:00:06]} 31. Qxe2 {[%clk 0:00:14]}  Rxf6 {[%clk 0:00:06]} 32. Ne5 {[%clk 0:00:13]}  Nxe5 {[%clk 0:00:06]} 33. Qxe5 {[%clk 0:00:10]}  Rf7 {[%clk 0:00:04]} 34. f3 {[%clk 0:00:08]}  Re7 {[%clk 0:00:04]} 35. Qg3 {[%clk 0:00:07]}  Rxe1+ {[%clk 0:00:03]} 36. Qxe1 {[%clk 0:00:07]}  Qe7 {[%clk 0:00:04]} 37. Qxe7 {[%clk 0:00:05]}  Nxe7 {[%clk 0:00:05]} 38. Kf2 {[%clk 0:00:05]}  Kf7 {[%clk 0:00:05]} 39. Ke3 {[%clk 0:00:05]}  Ke6 {[%clk 0:00:06]} 40. Nc1 {[%clk 0:00:05]}  Nc8 {[%clk 0:00:03]} 41. Nd3 {[%clk 0:00:05]}  Nd6 {[%clk 0:00:01]} 0-1


[Site "https://www.chess.com"]

[Event "Titled Tuesday Blitz December 13 Late 2022"]
[White "Holt, Conrad"]
[Black "Riff, Vincent"]
[WhiteFideId "2034387"]
[BlackFideId "617776"]
[WhiteElo "2592"]
[BlackElo "2369"]
[Result "1-0"]
[Round "02"]
[TimeControl "180+1"]
[Date "2022.12.13"]
[WhiteClock "0:01:31"]
[BlackClock "0:00:47"]

1. d4 {[%clk 0:03:00]}  Nf6 {[%clk 0:02:58]} 2. c4 {[%clk 0:03:01]}  c5 {[%clk 0:02:58]} 3. d5 {[%clk 0:03:01]}  e5 {[%clk 0:02:58]} 4. Nc3 {[%clk 0:03:00]}  d6 {[%clk 0:02:58]} 5. e4 {[%clk 0:03:00]}  Be7 {[%clk 0:02:59]} 6. Be2 {[%clk 0:03:00]}  Nbd7 {[%clk 0:02:59]} 7. h4 {[%clk 0:02:57]}  h6 {[%clk 0:02:53]} 8. Nf3 {[%clk 0:02:53]}  Nf8 {[%clk 0:02:52]} 9. h5 {[%clk 0:02:51]}  N8h7 {[%clk 0:02:52]} 10. Nh4 {[%clk 0:02:45]}  Nxh5 {[%clk 0:02:37]} 11. Bxh5 {[%clk 0:02:39]}  Bxh4 {[%clk 0:02:37]} 12. Bxf7+ {[%clk 0:02:39]}  Kxf7 {[%clk 0:02:34]} 13. Qh5+ {[%clk 0:02:39]}  g6 {[%clk 0:02:35]} 14. Qxh4 {[%clk 0:02:39]}  Qxh4 {[%clk 0:02:35]} 15. Rxh4 {[%clk 0:02:39]}  Bd7 {[%clk 0:01:54]} 16. Rxh6 {[%clk 0:02:30]}  Nf6 {[%clk 0:01:54]} 17. Ke2 {[%clk 0:02:28]}  Rxh6 {[%clk 0:01:51]} 18. Bxh6 {[%clk 0:02:28]}  Rh8 {[%clk 0:01:51]} 19. Bg5 {[%clk 0:02:26]}  Nh5 {[%clk 0:01:37]} 20. Ke3 {[%clk 0:02:17]}  Ng7 {[%clk 0:01:34]} 21. f3 {[%clk 0:02:14]}  Rh5 {[%clk 0:01:33]} 22. Bd8 {[%clk 0:02:14]}  Rh2 {[%clk 0:01:31]} 23. Kf2 {[%clk 0:02:13]}  Rh8 {[%clk 0:01:26]} 24. Bg5 {[%clk 0:02:10]}  Rh5 {[%clk 0:01:22]} 25. Be3 {[%clk 0:02:10]}  Rh8 {[%clk 0:01:22]} 26. a3 {[%clk 0:02:08]}  b6 {[%clk 0:01:21]} 27. a4 {[%clk 0:01:54]}  a5 {[%clk 0:01:19]} 28. Ra3 {[%clk 0:01:54]}  Ke7 {[%clk 0:01:13]} 29. Rb3 {[%clk 0:01:53]}  Rb8 {[%clk 0:01:12]} 30. Bg5+ {[%clk 0:01:52]}  Ke8 {[%clk 0:01:12]} 31. Nb5 {[%clk 0:01:52]}  Bxb5 {[%clk 0:01:11]} 32. Rxb5 {[%clk 0:01:52]}  Kd7 {[%clk 0:01:12]} 33. Rb3 {[%clk 0:01:43]}  Kc7 {[%clk 0:01:11]} 34. f4 {[%clk 0:01:40]}  exf4 {[%clk 0:01:09]} 35. Bxf4 {[%clk 0:01:40]}  Nh5 {[%clk 0:01:05]} 36. Bh2 {[%clk 0:01:39]}  Re8 {[%clk 0:01:05]} 37. Re3 {[%clk 0:01:38]}  Nf6 {[%clk 0:01:05]} 38. Kf3 {[%clk 0:01:36]}  g5 {[%clk 0:01:04]} 39. e5 {[%clk 0:01:34]}  g4+ {[%clk 0:01:02]} 40. Ke2 {[%clk 0:01:30]}  Nh5 {[%clk 0:00:51]} 41. exd6+ {[%clk 0:01:30]}  Kd7 {[%clk 0:00:51]} 42. Rxe8 {[%clk 0:01:30]}  Kxe8 {[%clk 0:00:48]} 43. Be5 {[%clk 0:01:31]}  Kf7 {[%clk 0:00:47]} 44. Ke3 {[%clk 0:01:31]} 1-0


[Site "https://www.chess.com"]

[Event "Titled Tuesday Blitz December 13 Late 2022"]
[White "Jacobson, Brandon"]
[Black "Papp, Levente"]
[WhiteFideId "30901561"]
[BlackFideId "751243"]
[WhiteElo "2451"]
[BlackElo "2380"]
[Result "1-0"]
[Round "02"]
[TimeControl "180+1"]
[Date "2022.12.13"]
[WhiteClock "0:00:07"]
[BlackClock "0:00:01"]

1. d4 {[%clk 0:03:00]}  e6 {[%clk 0:02:59]} 2. c4 {[%clk 0:03:01]}  d5 {[%clk 0:02:58]} 3. Nc3 {[%clk 0:03:01]}  Bb4 {[%clk 0:02:58]} 4. a3 {[%clk 0:03:00]}  Bxc3+ {[%clk 0:02:57]} 5. bxc3 {[%clk 0:03:01]}  Nf6 {[%clk 0:02:52]} 6. e3 {[%clk 0:03:01]}  O-O {[%clk 0:02:50]} 7. cxd5 {[%clk 0:03:02]}  exd5 {[%clk 0:02:50]} 8. Bd3 {[%clk 0:03:02]}  Bg4 {[%clk 0:02:40]} 9. Ne2 {[%clk 0:02:54]}  c5 {[%clk 0:02:35]} 10. O-O {[%clk 0:02:49]}  Nc6 {[%clk 0:02:25]} 11. f3 {[%clk 0:02:44]}  Bh5 {[%clk 0:02:19]} 12. Ng3 {[%clk 0:02:37]}  Bg6 {[%clk 0:02:18]} 13. Ra2 {[%clk 0:02:37]}  Re8 {[%clk 0:02:15]} 14. Re2 {[%clk 0:02:36]}  Qa5 {[%clk 0:02:11]} 15. Bb2 {[%clk 0:02:35]}  Rad8 {[%clk 0:01:53]} 16. Kh1 {[%clk 0:02:34]}  Qc7 {[%clk 0:01:48]} 17. Qd2 {[%clk 0:02:05]}  Na5 {[%clk 0:01:46]} 18. e4 {[%clk 0:01:56]}  Nb3 {[%clk 0:01:40]} 19. Qd1 {[%clk 0:01:54]}  dxe4 {[%clk 0:01:28]} 20. Bb5 {[%clk 0:01:19]}  c4 {[%clk 0:00:52]} 21. Bxe8 {[%clk 0:01:13]}  Rxe8 {[%clk 0:00:53]} 22. Rfe1 {[%clk 0:01:09]}  Qf4 {[%clk 0:00:47]} 23. Bc1 {[%clk 0:01:05]}  Qh4 {[%clk 0:00:47]} 24. Kg1 {[%clk 0:00:47]}  Re6 {[%clk 0:00:41]} 25. d5 {[%clk 0:00:44]}  Rd6 {[%clk 0:00:33]} 26. fxe4 {[%clk 0:00:42]}  Ng4 {[%clk 0:00:31]} 27. Nf1 {[%clk 0:00:42]}  Rf6 {[%clk 0:00:25]} 28. g3 {[%clk 0:00:37]}  Qh3 {[%clk 0:00:23]} 29. Bg5 {[%clk 0:00:36]}  Rf3 {[%clk 0:00:14]} 30. d6 {[%clk 0:00:29]}  Bxe4 {[%clk 0:00:13]} 31. d7 {[%clk 0:00:21]}  h6 {[%clk 0:00:13]} 32. d8=Q+ {[%clk 0:00:21]}  Kh7 {[%clk 0:00:14]} 33. Qe7 {[%clk 0:00:15]}  Nc5 {[%clk 0:00:10]} 34. Qxc5 {[%clk 0:00:12]}  Ne3 {[%clk 0:00:03]} 35. Bxe3 {[%clk 0:00:07]}  Rf2 {[%clk 0:00:01]} 36. Rxf2 {[%clk 0:00:07]} 1-0


[Site "https://www.chess.com"]

[Event "Titled Tuesday Blitz December 13 Late 2022"]
[White "Joubert, Dantelle"]
[Black "Kanyamarala, Trisha"]
[WhiteFideId "14310813"]
[BlackFideId "45004722"]
[WhiteElo "1507"]
[BlackElo "2135"]
[Result "0-1"]
[Round "02"]
[TimeControl "180+1"]
[Date "2022.12.14"]
[WhiteClock "0:00:01"]
[BlackClock "0:01:48"]

1. d4 {[%clk 0:03:00]}  d5 {[%clk 0:02:55]} 2. c4 {[%clk 0:03:00]}  e6 {[%clk 0:02:55]} 3. Nc3 {[%clk 0:02:58]}  Nf6 {[%clk 0:02:54]} 4. Nf3 {[%clk 0:02:57]}  c6 {[%clk 0:02:50]} 5. e3 {[%clk 0:02:54]}  Nbd7 {[%clk 0:02:49]} 6. Be2 {[%clk 0:02:53]}  dxc4 {[%clk 0:02:48]} 7. a4 {[%clk 0:02:52]}  Be7 {[%clk 0:02:40]} 8. O-O {[%clk 0:02:51]}  O-O {[%clk 0:02:39]} 9. Bxc4 {[%clk 0:02:50]}  c5 {[%clk 0:02:35]} 10. Qe2 {[%clk 0:02:20]}  cxd4 {[%clk 0:02:29]} 11. exd4 {[%clk 0:02:21]}  Nb6 {[%clk 0:02:28]} 12. Bd3 {[%clk 0:01:59]}  Nbd5 {[%clk 0:02:27]} 13. Bg5 {[%clk 0:01:49]}  Nb4 {[%clk 0:02:22]} 14. Bc2 {[%clk 0:01:48]}  Nxc2 {[%clk 0:02:19]} 15. Qxc2 {[%clk 0:01:46]}  Bd7 {[%clk 0:02:19]} 16. Ne5 {[%clk 0:01:36]}  Rc8 {[%clk 0:02:16]} 17. Qe2 {[%clk 0:01:34]}  Bc6 {[%clk 0:02:04]} 18. Nxc6 {[%clk 0:01:07]}  Rxc6 {[%clk 0:02:05]} 19. Rfd1 {[%clk 0:01:02]}  Rd6 {[%clk 0:02:02]} 20. Nb5 {[%clk 0:00:27]}  Rd5 {[%clk 0:02:00]} 21. Be3 {[%clk 0:00:14]}  a6 {[%clk 0:01:53]} 22. Nc3 {[%clk 0:00:13]}  Rd7 {[%clk 0:01:51]} 23. d5 {[%clk 0:00:09]}  Nxd5 {[%clk 0:01:50]} 24. Nxd5 {[%clk 0:00:09]}  Rxd5 {[%clk 0:01:50]} 25. Rxd5 {[%clk 0:00:08]}  Qxd5 {[%clk 0:01:50]} 26. Rd1 {[%clk 0:00:05]}  Qb3 {[%clk 0:01:50]} 27. Rd7 {[%clk 0:00:01]}  Bf6 {[%clk 0:01:48]} 0-1


[Site "https://www.chess.com"]

[Event "Titled Tuesday Blitz December 13 Late 2022"]
[White "Jumanov, Elbek"]
[Black "Campelo, Leandro Fabricio"]
[WhiteFideId "14202905"]
[BlackFideId "2103346"]
[WhiteElo "2055"]
[BlackElo "2070"]
[Result "1-0"]
[Round "02"]
[TimeControl "180+1"]
[Date "2022.12.14"]
[WhiteClock "0:01:46"]
[BlackClock "0:00:16"]

1. c4 {[%clk 0:02:55]}  g6 {[%clk 0:02:58]} 2. Nf3 {[%clk 0:02:54]}  Bg7 {[%clk 0:02:57]} 3. Nc3 {[%clk 0:02:55]}  d6 {[%clk 0:02:57]} 4. g3 {[%clk 0:02:55]}  Nf6 {[%clk 0:02:57]} 5. Bg2 {[%clk 0:02:56]}  O-O {[%clk 0:02:57]} 6. O-O {[%clk 0:02:56]}  e5 {[%clk 0:02:54]} 7. d3 {[%clk 0:02:54]}  Re8 {[%clk 0:02:52]} 8. Rb1 {[%clk 0:02:52]}  e4 {[%clk 0:02:51]} 9. Ne1 {[%clk 0:02:51]}  exd3 {[%clk 0:02:48]} 10. Nxd3 {[%clk 0:02:52]}  Nc6 {[%clk 0:02:36]} 11. b4 {[%clk 0:02:50]}  Rb8 {[%clk 0:02:30]} 12. Bb2 {[%clk 0:02:44]}  Be6 {[%clk 0:02:21]} 13. Nd5 {[%clk 0:02:41]}  Bxd5 {[%clk 0:01:58]} 14. cxd5 {[%clk 0:02:39]}  Ne7 {[%clk 0:01:56]} 15. e4 {[%clk 0:02:39]}  Nd7 {[%clk 0:01:52]} 16. Bxg7 {[%clk 0:02:36]}  Kxg7 {[%clk 0:01:51]} 17. f4 {[%clk 0:02:36]}  f6 {[%clk 0:01:46]} 18. Qc2 {[%clk 0:02:36]}  c6 {[%clk 0:01:42]} 19. dxc6 {[%clk 0:02:32]}  bxc6 {[%clk 0:01:42]} 20. Rfd1 {[%clk 0:02:31]}  Nf8 {[%clk 0:01:24]} 21. Kh1 {[%clk 0:02:25]}  Qb6 {[%clk 0:01:21]} 22. a3 {[%clk 0:02:21]}  Red8 {[%clk 0:01:13]} 23. Nb2 {[%clk 0:02:19]}  Ne6 {[%clk 0:01:08]} 24. Nc4 {[%clk 0:02:18]}  Qc7 {[%clk 0:01:02]} 25. Rd3 {[%clk 0:02:17]}  d5 {[%clk 0:00:58]} 26. Nd2 {[%clk 0:02:14]}  dxe4 {[%clk 0:00:38]} 27. Nxe4 {[%clk 0:02:13]}  Nf5 {[%clk 0:00:20]} 28. Rbd1 {[%clk 0:02:09]}  Rxd3 {[%clk 0:00:18]} 29. Rxd3 {[%clk 0:02:08]}  Rd8 {[%clk 0:00:18]} 30. Qd2 {[%clk 0:01:51]}  Rxd3 {[%clk 0:00:17]} 31. Qxd3 {[%clk 0:01:51]}  c5 {[%clk 0:00:17]} 32. Qc3 {[%clk 0:01:48]}  c4 {[%clk 0:00:16]} 33. Qxf6+ {[%clk 0:01:46]} 1-0


[Site "https://www.chess.com"]